bitfinex-derivatives/quotes_BNBF0:USTF0_20241230
["timestamp","ask_amount","ask_price","bid_price","bid_amount"]
[1735564253275,0.28563675,700.19,699.16,1.06763798]
[1735564255381,0.28563675,700.19,699.18,1.06763798]
[1735564256683,0.28563675,700.19,699.22,1.06763798]
[1735564258084,0.28563675,700.19,699.24,1.06763798]
[1735564258983,0.28563675,700.19,698.52,2.17976088]
[1735564258984,0.28563675,700.19,699.25,1.06763798]
[1735564260084,0.28563675,700.19,699.26,1.06763798]
[1735564260783,0.28563675,700.19,699.21,1.06763798]
[1735564261885,0.28563675,700.19,699.22,1.06763798]
[1735564262986,0.28563675,700.19,699.26,1.06763798]
[1735564264185,0.28563675,700.19,699.25,1.06763798]
[1735564265281,0.28563675,700.19,699.18,1.06763798]
[1735564266582,0.28563675,700.19,699.17,1.06763798]
[1735564267788,0.28563675,700.19,699.16,1.06763798]
[1735564268390,0.26303023,700.18,699.16,1.06763798]
[1735564269389,0.26303023,700.18,699.12,1.06763798]
[1735564269789,0.28563675,700.19,699.12,1.06763798]
[1735564270390,0.28563675,700.19,698.52,1.28116558]
[1735564270391,0.28563675,700.19,698.96,1.06763798]
[1735564271784,0.28563675,700.19,698.99,1.06763798]
[1735564272892,0.28563675,700.19,699.02,1.06763798]
[1735564274594,0.28563675,700.19,698.09,2.17976088]
[1735564274595,0.28563675,700.19,699.0,1.06763798]
[1735564276594,0.28563675,700.19,699.02,1.06763798]
[1735564278798,0.28563675,700.19,699.01,1.06763798]
[1735564279596,0.28563675,700.19,699.02,1.06763798]
[1735564279796,0.26300346,700.18,699.02,1.06763798]
[1735564279995,0.28564899,700.16,699.02,1.06763798]
[1735564280891,0.28564899,700.16,699.11,1.06763798]
[1735564282298,0.28564899,700.16,699.12,1.06763798]
[1735564282495,0.26299311,700.15,699.12,1.06763798]
[1735564282700,0.28566123,700.13,699.12,1.06763798]
[1735564283298,0.28566123,700.13,699.2,1.06763798]
[1735564284200,0.28566123,700.13,699.22,1.06763798]
[1735564285197,0.28566123,700.13,699.17,1.06763798]
[1735564287296,0.28566123,700.13,699.23,1.06763798]
[1735564288199,0.28566123,700.13,699.16,1.06763798]
[1735564289101,0.28566123,700.13,698.88,1.06763798]
[1735564289102,0.28566123,700.13,699.15,1.06763798]
[1735564291004,0.28566123,700.13,699.18,1.06763798]
[1735564292997,0.28566123,700.13,699.19,1.06763798]
[1735564294603,0.28566123,700.13,699.17,1.06763798]
[1735564296003,0.28566123,700.13,699.18,1.06763798]
[1735564296805,0.28566123,700.13,699.2,1.06763798]
[1735564297805,0.28566123,700.13,699.28,1.06763798]
[1735564298606,0.28566123,700.13,699.32,1.06763798]
[1735564299804,0.28566123,700.13,699.31,1.06763798]
[1735564300005,0.26300296,700.12,699.31,1.06763798]
[1735564300207,0.28566123,700.13,699.31,1.06763798]
[1735564300404,0.26300017,700.12,699.31,1.06763798]
[1735564300603,0.28566123,700.13,699.31,1.06763798]
[1735564300911,0.28566123,700.13,699.29,1.06763798]
[1735564302510,0.28566123,700.13,699.31,1.06763798]
[1735564303809,0.28566123,700.13,699.37,1.06763798]
[1735564304405,0.28566123,700.13,698.85,1.28116558]
[1735564304406,0.28566123,700.13,699.38,1.06763798]
[1735564305517,0.28566123,700.13,699.37,1.06763798]
[1735564306416,0.28566123,700.13,699.39,1.06763798]
[1735564306812,0.26299785,700.12,699.39,1.06763798]
[1735564307208,0.28566939,700.11,699.39,1.06763798]
[1735564307408,0.28566939,700.11,699.32,1.06763798]
[1735564307612,0.26299744,700.1,699.32,1.06763798]
[1735564307809,0.28567755,700.09,699.32,1.06763798]
[1735564308015,0.26299744,700.08,699.32,1.06763798]
[1735564308208,0.54870494,700.07,699.32,1.06763798]
[1735564308415,0.26301923,700.06,699.32,1.06763798]
[1735564308613,0.28569387,700.05,699.36,1.06763798]
[1735564308810,0.26301923,700.04,699.36,1.06763798]
[1735564309615,0.26301923,700.04,699.29,1.06763798]
[1735564310515,0.26301923,700.04,699.26,1.06763798]
[1735564311619,0.26301923,700.04,699.24,1.06763798]
[1735564312712,0.28569387,700.05,699.22,1.06763798]
[1735564312920,0.26305035,700.04,699.22,1.06763798]
[1735564313820,0.26305035,700.04,699.16,1.06763798]
[1735564314820,0.26305035,700.04,699.15,1.06763798]
[1735564315919,0.26305035,700.04,699.07,1.06763798]
[1735564316513,0.28569387,700.05,699.07,1.06763798]
[1735564317121,0.28569387,700.05,698.86,1.06763798]
[1735564317122,0.28569387,700.05,698.79,1.06763798]
[1735564318320,0.28569387,700.05,698.75,1.06763798]
[1735564319618,0.28569387,700.05,698.72,1.06763798]
[1735564320518,0.28569387,700.05,698.65,1.06763798]
[1735564321517,0.28569387,700.05,698.64,1.06763798]
[1735564322525,0.28569387,700.05,698.66,1.06763798]
[1735564323427,0.28569387,700.05,698.62,1.06763798]
[1735564324425,0.28569387,700.05,698.57,1.06763798]
[1735564325124,0.26311031,700.04,698.57,1.06763798]
[1735564326022,0.28570612,700.02,698.57,1.06763798]
[1735564326221,0.26310267,700.01,698.57,1.06763798]
[1735564326423,0.28570612,700.02,698.64,1.06763798]
[1735564326622,0.26309826,700.01,698.64,1.06763798]
[1735564327422,0.26309826,700.01,698.62,1.06763798]
[1735564327824,0.28571836,699.99,698.62,1.06763798]
[1735564328018,0.26309826,699.98,698.62,1.06763798]
[1735564328219,0.26309826,699.98,698.61,1.06763798]
[1735564329325,0.26309826,699.98,698.58,1.06763798]
[1735564330025,0.28573061,699.96,698.58,1.06763798]
[1735564330220,0.26309826,699.95,698.58,1.06763798]
[1735564330422,0.26309826,699.95,698.66,1.06763798]
[1735564331219,0.28573061,699.96,698.66,1.06763798]
[1735564331920,0.26314146,699.95,698.66,1.06763798]
[1735564332826,0.26314146,699.95,698.65,1.06763798]
[1735564333020,0.28574286,699.93,698.65,1.06763798]
[1735564333223,0.26314146,699.92,698.65,1.06763798]
[1735564333726,0.26314146,699.92,698.64,1.06763798]
[1735564334725,0.26314146,699.92,698.67,1.06763798]
[1735564335525,0.26314146,699.92,698.69,1.06763798]
[1735564335720,0.28574286,699.93,698.69,1.06763798]
[1735564335924,0.26314541,699.92,698.69,1.06763798]
[1735564336727,0.26314541,699.92,698.61,1.06763798]
[1735564337429,0.2857551,699.9,698.63,1.06763798]
[1735564337628,0.26314541,699.89,698.63,1.06763798]
[1735564337823,0.28576735,699.87,698.63,1.06763798]
[1735564338731,0.28576735,699.87,698.61,1.06763798]
[1735564339930,0.28576735,699.87,698.35,1.06763798]
[1735564339931,0.28576735,699.87,698.24,1.06763798]
[1735564340829,0.28576735,699.87,698.25,1.06763798]
[1735564342729,0.28576735,699.87,698.29,1.06763798]
[1735564342927,0.26320254,699.86,698.29,1.06763798]
[1735564343732,0.26320254,699.86,697.2,2.17976088]
[1735564343733,0.26320254,699.86,698.33,1.06763798]
[1735564344639,0.26320254,699.86,698.39,1.06763798]
[1735564345032,0.2857796,699.84,698.39,1.06763798]
[1735564345332,0.26321336,699.83,698.43,1.06763798]
[1735564345832,0.28579185,699.81,698.43,1.06763798]
[1735564346033,0.26321336,699.8,698.43,1.06763798]
[1735564346235,0.2632079,699.79,698.46,1.06763798]
[1735564346427,0.2632079,699.78,698.46,1.06763798]
[1735564346632,0.2632079,699.77,698.46,1.06763798]
[1735564346829,0.26321205,699.76,698.46,1.06763798]
[1735564347033,0.26321205,699.75,698.46,1.06763798]
[1735564347232,0.26321205,699.74,698.46,1.06763798]
[1735564347432,0.26321205,699.73,698.46,1.06763798]
[1735564347632,0.26321205,699.72,698.46,1.06763798]
[1735564347831,0.26321205,699.71,698.46,1.06763798]
[1735564348037,0.26321205,699.7,698.46,1.06763798]
[1735564348228,0.26321205,699.69,698.49,1.06763798]
[1735564348432,0.26321205,699.68,698.49,1.06763798]
[1735564348633,0.26321205,699.67,698.49,1.06763798]
[1735564348832,0.28579185,699.81,698.49,1.06763798]
[1735564349030,0.26321064,699.8,698.49,1.06763798]
[1735564349639,0.26321064,699.8,698.48,1.06763798]
[1735564350439,0.26321064,699.8,698.49,1.06763798]
[1735564351443,0.28579185,699.81,698.49,1.06763798]
[1735564351741,0.26320442,699.8,698.53,1.06763798]
[1735564352145,0.2858041,699.78,698.53,1.06763798]
[1735564352343,0.26320442,699.77,698.53,1.06763798]
[1735564352543,0.28581636,699.75,698.54,1.06763798]
[1735564352744,0.26320442,699.74,698.54,1.06763798]
[1735564353243,0.26320442,699.74,698.53,1.06763798]
[1735564354945,0.28582861,699.72,698.53,1.06763798]
[1735564355147,0.26321853,699.71,698.53,1.06763798]
[1735564355444,0.26322832,699.7,698.53,1.06763798]
[1735564355646,0.28582861,699.72,698.52,1.06763798]
[1735564355647,0.26322832,699.69,698.52,1.06763798]
[1735564355846,0.26322832,699.68,698.52,1.06763798]
[1735564356051,0.26322832,699.67,698.52,1.06763798]
[1735564356347,0.26322832,699.66,698.52,1.06763798]
[1735564356541,0.28582861,699.72,698.52,1.06763798]
[1735564356746,0.28582861,699.72,698.35,1.06763798]
[1735564356747,0.26323369,699.71,698.35,1.06763798]
[1735564357941,0.26323369,699.71,698.38,1.06763798]
[1735564358444,0.26322566,699.7,698.38,1.06763798]
[1735564358646,0.26322566,699.69,698.38,1.06763798]
[1735564358949,0.28582861,699.72,698.4,1.06763798]
[1735564359144,0.26322629,699.71,698.4,1.06763798]
[1735564359743,0.28584087,699.69,698.4,1.06763798]
[1735564359944,0.26322629,699.68,698.54,1.06763798]
[1735564361047,0.26322629,699.68,698.55,1.06763798]
[1735564361245,0.28585312,699.66,698.55,1.06763798]
[1735564361452,0.26322629,699.65,698.55,1.06763798]
[1735564361650,0.28586538,699.63,698.55,1.06763798]
[1735564362846,0.28586538,699.63,698.57,1.06763798]
[1735564363954,0.28586538,699.63,698.58,1.06763798]
[1735564365654,0.28586538,699.63,697.76,2.17976088]
[1735564365655,0.28586538,699.63,698.4,1.06763798]
[1735564366654,0.28586538,699.63,697.81,1.06763798]
[1735564366655,0.28586538,699.63,698.41,1.06763798]
[1735564368054,0.28586538,699.63,698.46,1.06763798]
[1735564369058,0.28586538,699.63,698.65,1.06763798]
[1735564371355,0.28586538,699.63,698.66,1.06763798]
[1735564372359,0.28586538,699.63,698.64,1.06763798]
[1735564373358,0.28586538,699.63,698.68,1.06763798]
[1735564375362,0.28586538,699.63,698.65,1.06763798]
[1735564376464,0.28586538,699.63,698.69,1.06763798]
[1735564377465,0.28586538,699.63,698.68,1.06763798]
[1735564378458,0.28586538,699.63,698.67,1.06763798]
[1735564379167,0.28586538,699.63,698.63,1.06763798]
[1735564380564,0.28586538,699.63,698.61,1.06763798]
[1735564381966,0.28586538,699.63,698.64,1.06763798]
[1735564382358,0.28586538,699.63,698.85,1.06763798]
[1735564383364,0.28586538,699.63,698.88,1.06763798]
[1735564384365,0.28586538,699.63,698.89,1.06763798]
[1735564385567,0.28586538,699.63,698.88,1.06763798]
[1735564386672,0.28586538,699.63,698.87,1.06763798]
[1735564388064,0.28586538,699.63,698.84,1.06763798]
[1735564389073,0.28586538,699.63,698.77,1.06763798]
[1735564389970,0.28586538,699.63,698.78,1.06763798]
[1735564391167,0.27172466,699.63,698.8,1.06763798]
[1735564391769,0.27172466,699.63,698.81,1.06763798]
[1735564393270,0.27172466,699.63,698.8,1.06763798]
[1735564394174,0.27172466,699.63,698.87,1.06763798]
[1735564395168,0.27172466,699.63,698.72,1.06763798]
[1735564396668,0.27172466,699.63,698.71,1.06763798]
[1735564397577,0.27172466,699.63,698.73,1.06763798]
[1735564398976,0.27172466,699.63,698.75,1.06763798]
[1735564399972,0.27172466,699.63,698.76,1.06763798]
[1735564402575,0.27172466,699.63,698.77,1.06763798]
[1735564403677,0.27172466,699.63,698.76,1.06763798]
[1735564404477,0.27172466,699.63,698.75,1.06763798]
[1735564405575,0.27172466,699.63,698.72,1.06763798]
[1735564406277,0.27172466,699.63,698.73,1.06763798]
[1735564407272,0.27172466,699.63,698.54,1.06763798]
[1735564408379,0.27172466,699.63,697.75,2.07612003]
[1735564408380,0.27172466,699.63,698.49,1.06763798]
[1735564409377,0.27172466,699.63,697.75,0.79495445]
[1735564409378,0.27172466,699.63,698.47,1.06763798]
[1735564409981,0.2632338,699.62,698.47,1.06763798]
[1735564410579,0.2632338,699.62,698.43,1.06763798]
[1735564411985,0.2632338,699.62,698.16,1.06763798]
[1735564412987,0.27172466,699.63,698.0,1.06763798]
[1735564414183,0.27172466,699.63,698.3,1.06763798]
[1735564414590,0.26322353,699.62,698.3,1.06763798]
[1735564414789,0.27172466,699.63,698.3,1.06763798]
[1735564415283,0.27172466,699.63,698.27,1.06763798]
[1735564415488,0.263262,699.62,698.27,1.06763798]
[1735564416483,0.2632564,699.61,698.12,1.06763798]
[1735564416682,0.2632564,699.6,698.12,1.06763798]
[1735564416985,0.2632564,699.59,698.12,1.06763798]
[1735564417288,0.2632564,699.58,698.12,1.06763798]
[1735564417489,0.27172466,699.63,698.1,1.06763798]
[1735564417889,0.26330992,699.62,698.1,1.06763798]
[1735564418489,0.26332666,699.61,697.91,1.06763798]
[1735564418690,0.26332666,699.6,697.91,1.06763798]
[1735564418989,0.26332666,699.59,697.91,1.06763798]
[1735564419190,0.26332666,699.58,697.91,1.06763798]
[1735564419385,0.26332666,699.62,697.91,1.06763798]
[1735564419585,0.26332666,699.61,697.8,1.06763798]
[1735564419791,0.26332666,699.6,697.8,1.06763798]
[1735564419988,0.26332666,699.59,697.8,1.06763798]
[1735564420189,0.26332666,699.58,697.8,1.06763798]
[1735564420490,0.26332666,699.57,697.8,1.06763798]
[1735564420792,0.26332666,699.56,697.79,1.06763798]
[1735564420991,0.27172466,699.63,697.79,1.06763798]
[1735564421193,0.26333513,699.62,697.79,1.06763798]
[1735564421593,0.26333513,699.62,697.75,1.06763798]
[1735564422189,0.26333513,699.62,697.75,1.05536952]
[1735564422788,0.26333513,699.62,697.37,1.06763798]
[1735564423690,0.2633476,699.61,697.37,1.06763798]
[1735564423889,0.2633476,699.6,697.37,1.06763798]
[1735564424190,0.27172466,699.63,697.37,1.06763798]
[1735564424390,0.26333545,699.62,697.37,1.06763798]
[1735564424694,0.26333545,699.62,697.7,1.06763798]
[1735564425487,0.26333545,699.62,697.68,1.06763798]
[1735564426189,0.27172466,699.63,697.68,1.06763798]
[1735564426393,0.26333484,699.62,697.68,1.06763798]
[1735564426594,0.26333484,699.62,697.67,1.06763798]
[1735564427394,0.27172466,699.63,697.67,1.06763798]
[1735564427395,0.26338596,699.61,697.67,1.06763798]
[1735564427597,0.26338596,699.6,697.43,1.06763798]
[1735564427896,0.26338596,699.59,697.43,1.06763798]
[1735564428190,0.26338596,699.58,697.43,1.06763798]
[1735564428391,0.26338596,699.57,697.43,1.06763798]
[1735564428596,0.27172466,699.63,697.42,1.06763798]
[1735564428797,0.26342101,699.62,697.42,1.06763798]
[1735564428993,0.26342101,699.61,697.42,1.06763798]
[1735564429193,0.26342101,699.6,697.42,1.06763798]
[1735564429394,0.26342101,699.59,697.42,1.06763798]
[1735564429691,0.26342101,699.58,697.39,1.06763798]
[1735564429891,0.26342101,699.57,697.39,1.06763798]
[1735564430094,0.26342101,699.56,697.39,1.06763798]
[1735564430392,0.26342101,699.55,697.39,1.06763798]
[1735564430591,0.26342101,699.54,697.2,1.06763798]
[1735564430793,0.26342101,699.62,697.2,1.06763798]
[1735564430989,0.26342101,699.61,697.2,1.06763798]
[1735564431297,0.26338814,699.6,697.2,1.06763798]
[1735564431493,0.26338814,699.62,697.2,1.06763798]
[1735564431690,0.26338814,699.61,697.2,1.06763798]
[1735564431897,0.26338814,699.6,697.29,1.06763798]
[1735564432197,0.26338814,699.59,697.29,1.06763798]
[1735564432399,0.26339062,699.58,697.29,1.06763798]
[1735564432899,0.26339062,699.57,697.29,1.06763798]
[1735564433097,0.26339062,699.62,697.29,1.06763798]
[1735564433295,0.26339062,699.61,697.29,1.06763798]
[1735564433497,0.26339062,699.6,697.3,1.06763798]
[1735564433800,0.26339062,699.59,697.3,1.06763798]
[1735564433999,0.26340096,699.58,697.3,1.06763798]
[1735564434193,0.26340096,699.57,697.3,1.06763798]
[1735564434397,0.26340096,699.62,697.3,1.06763798]
[1735564434597,0.26340096,699.61,697.32,1.06763798]
[1735564434793,0.26340096,699.6,697.32,1.06763798]
[1735564434999,0.27172466,699.63,697.32,1.06763798]
[1735564435000,0.26340096,699.59,697.32,1.06763798]
[1735564435200,0.27172466,699.63,697.32,1.06763798]
[1735564435201,0.26340096,699.58,697.32,1.06763798]
[1735564435496,0.26340096,699.57,697.32,1.06763798]
[1735564435701,0.26340096,699.56,697.32,1.06763798]
[1735564435902,0.26340096,699.62,697.32,1.06763798]
[1735564436101,0.26340096,699.61,697.32,1.06763798]
[1735564436401,0.26340096,699.61,696.51,2.17976088]
[1735564436402,0.27172466,699.63,697.47,1.06763798]
[1735564436701,0.26340437,699.62,697.47,1.06763798]
[1735564436900,0.26340437,699.61,697.47,1.06763798]
[1735564437103,0.26340437,699.6,697.47,1.06763798]
[1735564437301,0.26340437,699.59,697.47,1.06763798]
[1735564437501,0.26340437,699.58,697.53,1.06763798]
[1735564437801,0.26340437,699.57,697.53,1.06763798]
[1735564438004,0.26340437,699.56,697.53,1.06763798]
[1735564438201,0.26340437,699.55,697.53,1.06763798]
[1735564438396,0.26340437,699.54,697.53,1.06763798]
[1735564438704,0.26340437,699.53,697.53,1.06763798]
[1735564438896,0.27172466,699.63,697.53,1.06763798]
[1735564439095,0.26338688,699.62,697.55,1.06763798]
[1735564439295,0.26338688,699.61,697.55,1.06763798]
[1735564439497,0.27172466,699.63,697.55,1.06763798]
[1735564439700,0.26339288,699.62,697.55,1.06763798]
[1735564439896,0.27172466,699.63,697.55,1.06763798]
[1735564439897,0.26339288,699.61,697.55,1.06763798]
[1735564440100,0.27172466,699.63,697.43,1.06763798]
[1735564440101,0.26339288,699.6,697.72,1.06763798]
[1735564440303,0.26339288,699.59,697.72,1.06763798]
[1735564440503,0.26339288,699.62,697.72,1.06763798]
[1735564440701,0.26339288,699.61,697.72,1.06763798]
[1735564440902,0.27172466,699.63,697.72,1.06763798]
[1735564441103,0.27172466,699.63,697.74,1.3542777]
[1735564441902,0.26336129,699.62,697.74,1.3542777]
[1735564442106,0.26336129,699.62,697.8,1.06763798]
[1735564442498,0.26336129,699.62,697.75,0.791787]
[1735564443504,0.26334669,699.61,697.75,0.791787]
[1735564443803,0.26334669,699.62,697.75,0.791787]
[1735564444006,0.26334669,699.6,697.75,0.791787]
[1735564444199,0.26334669,699.61,697.75,0.791787]
[1735564444405,0.26334669,699.59,697.75,0.791787]
[1735564444704,0.26334669,699.58,697.84,1.06735268]
[1735564444903,0.26334669,699.57,697.84,1.06735268]
[1735564445103,0.26334669,699.56,697.84,1.06735268]
[1735564445301,0.26334669,699.55,697.84,1.06735268]
[1735564445600,0.26334669,699.54,697.84,1.06735268]
[1735564445806,0.26334669,699.53,697.9,1.06735268]
[1735564446105,0.27172466,699.63,697.9,1.06735268]
[1735564446106,0.26334976,699.52,697.9,1.06735268]
[1735564446304,0.26334976,699.51,697.9,1.06735268]
[1735564446502,0.26334976,699.5,697.9,1.06735268]
[1735564446704,0.26334976,699.5,697.78,1.06735268]
[1735564446705,0.26334976,699.62,697.98,1.06735268]
[1735564446905,0.26334976,699.61,697.98,1.06735268]
[1735564447106,0.26334976,699.6,697.98,1.06735268]
[1735564447302,0.26334976,699.59,697.98,1.06735268]
[1735564447506,0.26334976,699.58,697.98,1.06735268]
[1735564447707,0.26334976,699.57,697.98,1.06735268]
[1735564447908,0.26334976,699.56,698.0,1.06735268]
[1735564448108,0.26334976,699.55,698.0,1.06735268]
[1735564448410,0.26334976,699.54,698.0,1.06735268]
[1735564448609,0.26334976,699.62,698.0,1.06735268]
[1735564448806,0.28587764,699.6,698.0,1.06735268]
[1735564449110,0.26332624,699.59,697.98,1.06735268]
[1735564450211,0.26332624,699.59,698.02,1.06735268]
[1735564450913,0.26332624,699.59,698.03,1.06735268]
[1735564451411,0.26332868,699.58,698.03,1.06735268]
[1735564451609,0.28587764,699.6,698.03,1.06735268]
[1735564451610,0.26332868,699.57,698.03,1.06735268]
[1735564451806,0.26332868,699.56,698.08,1.06735268]
[1735564452012,0.26332558,699.55,698.08,1.06735268]
[1735564452209,0.26332558,699.54,698.08,1.06735268]
[1735564452406,0.26332558,699.53,698.08,1.06735268]
[1735564452606,0.26332558,699.52,698.08,1.06735268]
[1735564452806,0.28587764,699.6,698.11,1.06735268]
[1735564452807,0.26332558,699.51,698.11,1.06735268]
[1735564453010,0.26332558,699.5,698.11,1.06735268]
[1735564453211,0.26332558,699.49,698.11,1.06735268]
[1735564453410,0.26332558,699.48,698.11,1.06735268]
[1735564453612,0.26332558,699.47,698.12,1.06735268]
[1735564453808,0.26332558,699.46,698.12,1.06735268]
[1735564454013,0.26332902,699.45,698.12,1.06735268]
[1735564454212,0.26332902,699.59,698.12,1.06735268]
[1735564454413,0.26332902,699.59,697.75,0.791787]
[1735564454414,0.26332902,699.58,698.11,1.06735268]
[1735564454613,0.26332902,699.57,698.11,1.06735268]
[1735564454814,0.26332902,699.56,698.11,1.06735268]
[1735564455016,0.26332902,699.55,698.11,1.06735268]
[1735564455210,0.26332902,699.59,698.11,1.06735268]
[1735564455507,0.26332902,699.58,698.11,1.06735268]
[1735564455712,0.26332902,699.57,698.11,1.06735268]
[1735564455913,0.26332902,699.56,698.11,1.06735268]
[1735564456106,0.28587764,699.6,698.11,1.06735268]
[1735564456107,0.26332902,699.55,698.11,1.06735268]
[1735564456305,0.28590625,699.53,698.11,1.06735268]
[1735564456505,0.26332902,699.52,698.11,1.06735268]
[1735564456707,0.26332746,699.51,698.11,1.06735268]
[1735564456910,0.2859226,699.49,698.11,1.06735268]
[1735564457107,0.26332746,699.48,698.11,1.06735268]
[1735564457316,0.28593486,699.46,698.1,1.06735268]
[1735564457612,0.26332746,699.45,698.1,1.06735268]
[1735564458012,0.28594712,699.43,698.1,1.06735268]
[1735564458215,0.26332746,699.42,698.11,1.06735268]
[1735564459313,0.26332656,699.41,698.07,1.06735268]
[1735564459510,0.26332656,699.4,698.07,1.06735268]
[1735564459707,0.28596757,699.38,698.07,1.06735268]
[1735564459912,0.26332656,699.37,698.07,1.06735268]
[1735564460114,0.28597983,699.35,698.07,1.06735268]
[1735564460310,0.26332656,699.34,698.07,1.06735268]
[1735564460715,0.2859921,699.32,698.07,1.06735268]
[1735564460915,0.26332656,699.31,698.07,1.06735268]
[1735564461111,0.28600437,699.29,698.07,1.06735268]
[1735564461318,0.26332656,699.28,698.08,1.06735268]
[1735564461510,0.28601664,699.26,698.08,1.06735268]
[1735564461712,0.26332656,699.25,698.08,1.06735268]
[1735564461916,0.28602891,699.23,698.08,1.06735268]
[1735564462216,0.28602891,699.23,697.99,1.06735268]
[1735564462217,0.26334489,699.22,697.99,1.06735268]
[1735564462619,0.28603709,699.21,697.99,1.06735268]
[1735564462918,0.26334489,699.2,697.99,1.06735268]
[1735564463117,0.26334489,699.2,697.75,0.791787]
[1735564463118,0.28604528,699.19,698.0,1.06735268]
[1735564463314,0.26334489,699.18,698.0,1.06735268]
[1735564464516,0.28605346,699.17,697.96,1.06735268]
[1735564464717,0.26337088,699.16,697.96,1.06735268]
[1735564466120,0.28606573,699.14,697.96,1.06735268]
[1735564466319,0.26337088,699.13,697.96,1.06735268]
[1735564466520,0.26337088,699.13,697.92,1.06735268]
[1735564467425,0.26337088,699.13,697.85,1.06735268]
[1735564468520,0.28607801,699.11,697.85,1.06735268]
[1735564468717,0.26337088,699.1,697.85,1.06735268]
[1735564469423,0.26337088,699.1,697.84,1.06735268]
[1735564469618,0.28607801,699.11,697.84,1.06735268]
[1735564469824,0.26339459,699.1,697.84,1.06735268]
[1735564470221,0.28607801,699.11,697.84,1.06735268]
[1735564470420,0.26339655,699.1,697.87,1.06735268]
[1735564470825,0.26338489,699.09,697.87,1.06735268]
[1735564471022,0.54947518,699.08,697.87,1.06735268]
[1735564471225,0.54947927,699.07,697.87,1.06735268]
[1735564471426,0.28609438,699.07,697.94,1.06735268]
[1735564471726,0.26338839,699.06,697.94,1.06735268]
[1735564472027,0.28610256,699.05,697.94,1.06735268]
[1735564472526,0.28610256,699.05,697.93,1.06735268]
[1735564473628,0.28610256,699.05,697.95,1.06735268]
[1735564474523,0.28610256,699.05,697.96,1.06735268]
[1735564475525,0.2633998,699.04,697.96,1.06735268]
[1735564475727,0.54950176,699.03,697.96,1.06735268]
[1735564475926,0.54950585,699.02,697.9,1.06735268]
[1735564476130,0.26339101,699.01,697.9,1.06735268]
[1735564476332,0.28612303,699.0,697.9,1.06735268]
[1735564476831,0.26339101,698.99,697.99,1.06735268]
[1735564477032,0.28613121,698.98,697.99,1.06735268]
[1735564478535,0.28613121,698.98,697.75,0.791787]
[1735564480132,0.28613121,698.98,697.96,1.07128716]
[1735564480835,0.28613121,698.98,697.95,1.07128716]
[1735564481333,0.28613121,698.98,697.75,0.791787]
[1735564481334,0.28613121,698.98,697.96,1.07128716]
[1735564481935,0.28613121,698.98,697.93,1.07128716]
[1735564484439,0.28613121,698.98,697.97,1.07128716]
[1735564485437,0.28613121,698.98,698.01,1.07128716]
[1735564486338,0.28613121,698.98,698.0,1.07128716]
[1735564488739,0.28613121,698.98,698.04,1.07128716]
[1735564489742,0.28613121,698.98,697.89,1.07128716]
[1735564490941,0.28613121,698.98,697.97,1.07128716]
[1735564491637,0.28613121,698.98,698.18,1.07128716]
[1735564492842,0.28613121,698.98,698.2,1.07128716]
[1735564493438,0.28613121,698.98,698.11,1.07128716]
[1735564494440,0.28613121,698.98,698.12,1.07128716]
[1735564495035,0.28613121,698.98,698.08,1.07128716]
[1735564497041,0.28613121,698.98,698.06,1.07128716]
[1735564498043,0.28613121,698.98,698.05,1.07128716]
[1735564498942,0.28613121,698.98,697.75,0.791787]
[1735564498943,0.28613121,698.98,697.92,1.07128716]
[1735564500142,0.28613121,698.98,697.78,3.4077507]
[1735564500143,0.28613121,698.98,698.0,1.07128716]
[1735564501343,0.28613121,698.98,698.27,1.07128716]
[1735564502346,0.28613121,698.98,698.1,1.07128716]
[1735564502847,1.06093444,700.41,698.1,1.07128716]
[1735564503045,0.28559188,700.3,698.1,1.07128716]
[1735564503246,0.26325647,700.29,698.1,1.07128716]
[1735564503448,0.26325647,700.28,698.1,1.07128716]
[1735564503747,0.26325647,700.27,698.0,1.07128716]
[1735564503944,0.26325647,700.26,698.0,1.07128716]
[1735564504247,0.26325647,700.25,698.0,1.07128716]
[1735564504444,0.26325647,700.24,698.0,1.07128716]
[1735564504644,1.06093444,700.2,697.98,1.07128716]
[1735564504844,0.26325647,700.19,697.98,1.07128716]
[1735564505042,0.26325647,700.18,697.98,1.07128716]
[1735564505241,0.26325647,700.17,697.98,1.07128716]
[1735564505445,0.26325647,700.16,697.98,1.07128716]
[1735564505642,0.26325647,700.15,697.97,1.07128716]
[1735564505846,0.26325647,700.14,697.97,1.07128716]
[1735564506039,0.26325647,700.13,697.97,1.07128716]
[1735564506245,0.26325647,700.12,697.97,1.07128716]
[1735564506445,0.26325647,700.11,697.97,1.07128716]
[1735564506648,0.26325647,700.1,697.97,1.07128716]
[1735564506848,0.26325647,700.09,697.97,1.07128716]
[1735564507144,0.26325647,700.08,697.97,1.07128716]
[1735564507349,0.26325647,700.08,697.75,0.791787]
[1735564507350,0.26325647,700.07,698.03,1.07128716]
[1735564507548,0.26325647,700.06,698.03,1.07128716]
[1735564507755,0.26325647,700.05,698.03,1.07128716]
[1735564507942,0.28573469,699.95,698.03,1.07128716]
[1735564508142,0.26325647,699.94,698.03,1.07128716]
[1735564508347,0.28574694,699.92,698.03,1.07128716]
[1735564508549,0.26325647,699.91,698.07,1.07128716]
[1735564508749,0.28575919,699.89,698.07,1.07128716]
[1735564509045,0.26325647,699.88,698.07,1.07128716]